bitfinex-derivatives/quotes_ETHF0:USTF0_20260131
["timestamp","ask_amount","ask_price","bid_price","bid_amount"]
[1769880034199,3.97585211,2413.4,2411.5,0.00477391]
[1769880034399,3.97585211,2412.8,2411.5,0.00477391]
[1769880034608,3.97585211,2412.6,2411.5,0.00477391]
[1769880034807,0.00857229,2412.7,2410.9,3.91713327]
[1769880035006,3.312,2413.5,2410.9,3.91713327]
[1769880035306,3.97585211,2414.7,2411.5,4.12478327]
[1769880035509,3.97585211,2414.7,2411.7,3.91713327]
[1769880035704,3.97585211,2415.2,2411.9,3.91713327]
[1769880036207,3.97585211,2415.2,2411.9,3.92120775]
[1769880036208,3.98084514,2415.2,2411.9,3.92120775]
[1769880036606,3.98084514,2415.2,2412.3,3.91713327]
[1769880036801,3.312,2415.7,2412.5,3.91713327]
[1769880037006,3.80290987,2417.7,2414.4,3.73696785]
[1769880037311,3.80290987,2417.7,2414.6,2.65099653]
[1769880037813,3.80290987,2417.7,2414.6,2.65405581]
[1769880037814,3.80735372,2417.7,2414.6,2.65405581]
[1769880038007,3.80735372,2417.7,2415.3,2.65099653]
[1769880038505,3.80290987,2417.3,2415.3,2.65099653]
[1769880038708,3.80290987,2417.3,2414.8,2.77051432]
[1769880039006,3.80695252,2417.1,2414.8,2.77051432]
[1769880039208,3.80290987,2417.1,2414.8,2.77051432]
[1769880039507,0.00444385,2417.7,2415.5,2.77051432]
[1769880039707,3.80290987,2418.6,2414.7,6.60831251]
[1769880039708,3.80290987,2418.6,2415.7,2.77051432]
[1769880040008,3.80290987,2418.6,2415.7,3.11777798]
[1769880040211,3.80290987,2420.1,2416.6,2.77051432]
[1769880040410,3.80290987,2420.1,2416.8,2.72341669]
[1769880040607,3.80290987,2420.1,2417.5,2.72341669]
[1769880040608,0.00310485,2420.1,2417.5,2.72341669]
[1769880040803,3.80601472,2420.1,2417.5,2.72341669]
[1769880041204,0.00310485,2420.1,2417.5,2.93054669]
[1769880041409,3.70944775,2420.1,2417.5,2.93054669]
[1769880041708,3.70944775,2420.1,2417.5,2.72341669]
[1769880041905,0.00310485,2420.1,2417.5,2.72341669]
[1769880042113,0.00310485,2420.1,2417.9,2.72346525]
[1769880042302,3.7063429,2421.0,2418.3,2.79380385]
[1769880042503,3.7063429,2421.0,2418.5,2.79380385]
[1769880042906,3.7148294,2420.9,2418.5,2.79380385]
[1769880043109,3.7063429,2420.9,2418.5,2.79380385]
[1769880043307,3.71163528,2420.9,2418.5,2.79818963]
[1769880043613,0.00529238,2420.9,2418.7,2.79380385]
[1769880044306,3.71163528,2420.9,2418.7,2.79380385]
[1769880044501,0.00529238,2420.9,2418.7,2.79380385]
[1769880044710,3.71163528,2420.9,2418.7,2.79380385]
[1769880044909,3.7063429,2420.4,2418.7,2.79380385]
[1769880045207,3.71163528,2420.9,2418.7,2.79380385]
[1769880045410,3.7063429,2420.7,2418.7,2.79380385]
[1769880045606,3.7148294,2420.6,2418.7,2.79380385]
[1769880045807,3.7063429,2420.2,2418.5,6.18149688]
[1769880046005,0.0084865,2420.0,2418.5,6.18149688]
[1769880046207,3.7063429,2419.7,2418.5,3.31438578]
[1769880046410,3.7063429,2420.3,2418.6,2.86470543]
[1769880046707,3.7063429,2420.8,2418.6,2.86470543]
[1769880046910,0.00529238,2420.9,2418.6,2.86470543]
[1769880047107,3.71163528,2420.9,2418.6,2.86470543]
[1769880047410,3.71163528,2420.9,2418.8,2.86470543]
[1769880047809,3.71163528,2420.9,2418.5,0.00438578]
[1769880049016,3.7063429,2420.6,2418.5,0.00438578]
[1769880049409,3.7063429,2420.6,2417.4,3.25671212]
[1769880049605,3.7063429,2420.1,2416.9,3.309]
[1769880050510,3.7063429,2420.1,2416.9,3.31303206]
[1769880050714,3.7063429,2419.6,2416.9,3.31303206]
[1769880051017,3.7063429,2419.5,2416.9,3.31303206]
[1769880051208,3.7063429,2419.5,2417.4,2.891893]
[1769880051411,3.7063429,2419.5,2417.3,3.25671212]
[1769880051614,3.7063429,2419.5,2416.9,2.89592506]
[1769880051815,3.7063429,2419.5,2417.3,3.25671212]
[1769880052010,3.7063429,2419.5,2417.4,2.891893]
[1769880052216,3.309,2420.2,2417.8,3.25671212]
[1769880052509,6.56571212,2420.2,2417.4,2.891893]
[1769880052715,3.309,2420.2,2417.5,3.96051669]
[1769880053613,3.309,2420.2,2417.8,3.96051669]
[1769880054009,3.309,2420.2,2417.7,3.25671212]
[1769880054211,3.7063429,2420.1,2418.0,3.96051669]
[1769880054606,3.7063429,2420.1,2417.5,3.96051669]
[1769880055108,3.7063429,2420.1,2416.9,0.00403206]
[1769880055412,3.9132629,2420.1,2417.3,3.96051669]
[1769880057109,3.9132629,2420.1,2417.7,3.96051669]
[1769880057110,3.7063429,2420.1,2417.7,3.96051669]
[1769880057515,3.7063429,2420.1,2417.2,3.96051669]
[1769880058120,3.7063429,2420.1,2417.7,3.96051669]
[1769880058311,3.7063429,2420.1,2417.3,3.96051669]
[1769880058509,0.20694,2419.9,2416.9,3.96454875]
[1769880058714,3.7063429,2419.8,2417.2,3.96051669]
[1769880059013,3.7063429,2419.8,2417.5,3.96051669]
[1769880059615,3.7063429,2419.8,2417.0,3.96051669]
[1769880059809,3.7063429,2419.6,2417.0,3.96051669]
[1769880060017,3.9133129,2419.6,2416.9,0.00403206]
[1769880060324,3.7063429,2419.2,2417.0,3.96051669]
[1769880060513,3.71109393,2419.2,2416.9,0.00403206]
[1769880060719,3.71109393,2419.2,2417.0,3.96051669]
[1769880060919,3.71109393,2419.2,2417.1,3.96490247]
[1769880061115,3.71109393,2419.2,2416.9,0.00403206]
[1769880061322,3.7063429,2418.9,2416.9,0.00403206]
[1769880061614,0.00475103,2419.2,2414.7,3.96051669]
[1769880061615,3.7063429,2417.9,2414.7,3.96051669]
[1769880061816,3.7063429,2416.8,2413.7,3.96051669]
[1769880062017,3.9135829,2416.3,2413.2,3.96051669]
[1769880062222,3.7063429,2415.8,2413.2,3.96051669]
[1769880062418,3.71014558,2415.8,2413.9,3.96051669]
[1769880062611,0.00380268,2415.8,2413.9,3.96051669]
[1769880062816,0.00380268,2415.8,2414.7,7.22161459]
[1769880063016,3.7063429,2416.5,2414.2,3.96051669]
[1769880063320,3.7063429,2416.4,2414.2,3.96051669]
[1769880063518,3.7063429,2416.4,2413.7,3.96051669]
[1769880063714,3.7063429,2415.9,2413.2,3.964021]
[1769880063915,3.7063429,2415.9,2413.8,3.96051669]
[1769880064216,3.71014436,2415.9,2414.2,3.96051669]
[1769880064415,3.7063429,2416.9,2415.3,3.96051669]
[1769880064614,3.7063429,2418.0,2415.3,3.96051669]
[1769880065021,3.7063429,2417.6,2414.6,3.96051669]
[1769880065525,3.7063429,2417.4,2414.6,3.96541187]
[1769880065720,3.9134929,2417.4,2414.6,3.96541187]
[1769880065916,3.7063429,2416.6,2414.6,0.00489518]
[1769880066221,3.7063429,2416.1,2414.6,0.00489518]
[1769880066523,3.7063429,2415.6,2412.9,3.96051669]
[1769880066715,3.7063429,2415.6,2413.6,7.21722881]
[1769880067019,4.03636295,2416.4,2414.2,3.71115482]
[1769880067221,4.03636295,2416.4,2413.7,3.71115482]
[1769880067421,4.04124782,2416.4,2414.2,3.71115482]
[1769880067621,4.04124782,2416.4,2414.1,0.00487087]
[1769880067830,4.03636295,2416.2,2414.1,0.00487087]
[1769880068024,4.03636295,2416.2,2413.0,3.31]
[1769880068025,0.20734,2415.2,2413.0,3.31]
[1769880068226,4.03636295,2414.6,2412.2,3.71115482]
[1769880068420,4.03636295,2414.6,2412.3,3.71115482]
[1769880069029,4.04071673,2414.6,2412.3,3.71451547]
[1769880069625,4.04071673,2414.6,2412.5,0.00438578]
[1769880069926,4.04071673,2414.6,2412.3,0.00336065]
[1769880070120,4.04071673,2414.6,2412.7,0.00438578]
[1769880070318,4.04071673,2414.6,2412.6,3.71115482]
[1769880070518,4.04071673,2414.6,2413.2,3.71115482]
[1769880070722,4.04071673,2414.6,2413.2,3.7155406]
[1769880070917,4.04071673,2414.6,2412.7,3.71115482]
[1769880071123,4.04071673,2414.6,2413.1,3.71115482]
[1769880071329,0.00435378,2414.6,2413.1,3.71115482]
[1769880071524,4.04071673,2414.6,2413.1,3.71115482]
[1769880071725,0.00435378,2414.6,2413.1,3.71115482]
[1769880071929,0.00435378,2414.6,2413.4,0.00438578]
[1769880072118,0.2073,2415.7,2413.1,3.71115482]
[1769880072119,4.03636295,2416.0,2413.2,3.71115482]
[1769880072324,4.03636295,2416.0,2413.8,3.7155406]
[1769880072527,4.03636295,2416.6,2414.3,3.71115482]
[1769880072927,4.03636295,2416.6,2414.7,3.71115482]
[1769880073124,4.03958325,2416.6,2414.9,0.00438578]
[1769880073325,3.279,2417.7,2414.7,3.71477499]
[1769880073326,4.03636295,2417.1,2415.6,3.71115482]
[1769880073527,4.03636295,2417.1,2414.7,3.71477499]
[1769880073724,0.20704,2418.7,2414.7,3.71477499]
[1769880073725,4.03636295,2416.9,2414.7,0.00362017]
[1769880073929,4.03636295,2416.3,2414.7,3.71477499]
[1769880074128,4.03636295,2416.3,2414.7,0.00362017]
[1769880074334,0.00473214,2416.3,2415.7,0.00438578]
[1769880074532,0.00473214,2416.3,2414.7,0.00362017]
[1769880074533,4.03636295,2418.1,2416.2,0.00438578]
[1769880074722,4.03636295,2418.1,2416.7,3.71115482]
[1769880074926,4.03636295,2418.6,2416.7,3.71115482]
[1769880075342,4.03636295,2419.6,2417.5,3.71115482]
[1769880075530,0.00391684,2419.6,2418.1,3.71115482]
[1769880075831,0.00391684,2419.6,2418.1,3.7155406]
[1769880076035,4.04027979,2419.6,2417.5,0.00375763]
[1769880076329,4.03636295,2419.4,2417.5,0.00375763]
[1769880076728,4.03636295,2419.4,2417.5,3.71491245]
[1769880077033,0.00391684,2419.6,2418.3,3.71115482]
[1769880077228,0.00391684,2419.6,2418.5,0.00438578]
[1769880077534,0.00391684,2419.6,2418.7,0.00438578]
[1769880077728,4.04027979,2419.6,2418.1,0.00438578]
[1769880077923,4.03636295,2419.4,2417.5,0.00375763]
[1769880078328,4.03636295,2419.2,2416.6,3.71115482]
[1769880078532,4.03636295,2419.2,2416.8,3.71115482]
[1769880078829,4.03636295,2419.2,2417.5,3.7155406]
[1769880079336,0.00391684,2419.6,2418.0,3.71115482]
[1769880079534,4.03636295,2419.5,2417.7,0.00438578]
[1769880079730,4.03636295,2419.5,2417.6,3.71115482]
[1769880079926,4.03636295,2419.5,2417.8,0.00438578]
[1769880080130,0.00391684,2419.6,2418.6,0.00438578]
[1769880080329,0.00391684,2419.6,2418.4,3.71115482]
[1769880080530,4.04027979,2419.6,2418.5,0.00438578]
[1769880080731,0.00391684,2419.6,2418.1,3.71115482]
[1769880080932,4.03636295,2420.6,2418.9,0.00438578]
[1769880081128,4.03636295,2420.6,2418.6,3.71115482]
[1769880081433,4.03636295,2420.6,2418.8,3.71115482]
[1769880081627,4.03636295,2421.1,2419.0,3.7155406]
[1769880081831,4.03636295,2421.1,2419.0,3.71115482]
[1769880082033,4.04081553,2421.1,2419.1,0.00438578]
[1769880082232,4.04081553,2421.1,2418.1,3.25671212]
[1769880082435,4.03636295,2420.8,2418.0,3.71115482]
[1769880082633,4.03636295,2420.8,2417.6,3.71115482]
[1769880082843,4.03636295,2420.8,2418.1,3.71115482]
[1769880083029,4.03636295,2420.6,2418.1,3.71115482]
[1769880083541,4.03636295,2420.6,2418.1,3.7155406]
[1769880083837,4.03636295,2420.6,2418.3,3.71115482]
[1769880084036,4.03636295,2420.6,2418.5,3.71115482]
[1769880084234,4.03636295,2420.6,2418.7,3.71115482]
[1769880084436,4.03636295,2420.6,2418.7,3.7155406]
[1769880084641,4.03636295,2420.6,2418.1,3.71115482]
[1769880084934,4.04081553,2421.1,2418.8,3.71115482]
[1769880085636,4.03636295,2420.6,2417.8,3.31]
[1769880085838,4.03636295,2420.6,2417.9,3.71115482]
[1769880086042,4.03636295,2420.6,2418.5,3.7155406]
[1769880086243,4.03636295,2420.6,2418.9,3.71115482]
[1769880086446,4.04081553,2421.1,2419.7,0.00438578]
[1769880086738,4.04081553,2421.1,2419.6,3.71115482]
[1769880086934,3.25671212,2421.0,2418.0,3.71115482]
[1769880087140,4.03636295,2420.4,2417.5,3.71115482]
[1769880087343,4.03636295,2420.4,2417.3,3.309]
[1769880087344,4.03636295,2419.9,2417.3,3.309]
[1769880087538,4.03636295,2419.9,2417.3,3.31427867]
[1769880087739,4.03636295,2420.4,2418.5,3.71115482]
[1769880088142,4.03636295,2420.4,2418.5,3.7155406]
[1769880088336,4.03636295,2420.4,2418.0,3.71115482]
[1769880088541,4.03636295,2420.4,2417.8,0.00438578]
[1769880088741,4.03636295,2420.4,2418.3,3.71115482]
[1769880088941,4.03636295,2420.4,2418.3,3.7155406]
[1769880089141,4.03636295,2420.4,2418.4,0.00438578]
[1769880089443,4.03636295,2420.4,2417.7,3.25671212]
[1769880089444,4.03636295,2420.4,2418.2,3.71115482]
[1769880089844,4.03636295,2420.4,2418.3,3.71115482]
[1769880090045,4.03636295,2420.4,2418.6,3.71115482]
[1769880090346,4.03636295,2420.4,2418.2,3.25671212]
[1769880090347,4.03636295,2420.9,2419.2,3.71115482]
[1769880090545,4.03636295,2420.9,2419.2,0.00447888]
[1769880091136,4.03636295,2420.9,2417.7,6.56571212]
[1769880091137,4.03636295,2420.8,2417.8,3.71115482]
[1769880091337,4.03636295,2420.3,2417.3,3.71115482]
[1769880091541,3.25671212,2419.8,2416.8,3.71115482]
[1769880091741,4.03636295,2419.5,2416.8,3.71115482]
[1769880092239,4.03636295,2419.5,2417.1,3.71115482]
[1769880092445,4.03636295,2419.5,2417.3,3.71115482]
[1769880092849,4.03636295,2419.5,2418.0,3.71115482]
[1769880093043,4.03636295,2419.5,2417.6,3.25671212]
[1769880093044,4.03636295,2420.9,2418.1,3.71115482]
[1769880093446,4.03636295,2420.9,2418.1,3.7155406]
[1769880093742,4.03636295,2420.9,2418.6,3.71115482]
[1769880093952,4.03636295,2420.9,2418.6,3.71643]
[1769880094147,4.03636295,2420.9,2418.6,0.00527518]
[1769880094347,4.03636295,2420.6,2418.6,0.00527518]
[1769880094843,4.03636295,2419.9,2417.1,3.71115482]
[1769880095152,4.03636295,2419.9,2417.2,3.71115482]
[1769880095451,4.03636295,2419.9,2417.7,3.71115482]
[1769880095750,4.03636295,2419.9,2417.9,3.71115482]
[1769880095941,4.03636295,2419.9,2417.7,0.00521838]
[1769880095942,4.03636295,2419.9,2418.2,3.7155406]
[1769880096139,4.03636295,2420.4,2418.8,3.71115482]
[1769880096652,4.03636295,2420.4,2418.0,3.71115482]
[1769880096850,4.03636295,2420.4,2418.2,3.69046235]
[1769880097246,3.75453597,2420.1,2417.9,3.69046235]
[1769880097441,3.75453597,2420.1,2418.0,3.69484813]
[1769880097748,3.75453597,2420.1,2418.7,3.69046235]
[1769880097950,3.75453597,2420.5,2418.7,3.69484813]
[1769880098154,3.75453597,2420.5,2418.7,3.69046235]
[1769880098351,3.75453597,2420.5,2419.1,0.00438578]
[1769880098550,3.75453597,2420.5,2418.7,3.69046235]
[1769880098551,3.75453597,2420.5,2418.9,0.00438578]
[1769880098751,3.75453597,2420.5,2419.2,0.00438578]
[1769880098949,3.75453597,2420.5,2418.0,3.69046235]
[1769880099248,3.75453597,2420.5,2417.7,3.69568073]
[1769880099548,3.75453597,2419.7,2417.7,0.00521838]
[1769880099748,3.75453597,2419.5,2417.7,0.00521838]
[1769880099943,3.75453597,2419.1,2417.7,0.00521838]
[1769880100150,3.75809248,2419.1,2418.0,0.00438578]
[1769880100451,3.92493383,2418.9,2417.7,0.00521838]
[1769880100652,3.92493383,2418.9,2416.6,4.02679585]
[1769880100855,3.92493383,2418.9,2416.7,4.03118163]
[1769880101054,3.92493383,2418.7,2416.2,4.02679585]
[1769880101356,3.92493383,2418.4,2415.5,4.02679585]
[1769880101546,3.308,2419.0,2415.5,4.02679585]
[1769880101547,3.92493383,2418.1,2415.5,4.02679585]
[1769880101754,3.92493383,2417.7,2415.5,4.0315637]
[1769880101955,7.18388805,2417.3,2415.5,0.00476785]
[1769880102155,3.92493383,2417.2,2415.5,4.0315637]
[1769880102353,0.00404189,2417.3,2415.9,4.02679585]
[1769880102547,0.00404189,2417.3,2416.2,0.00438578]
[1769880102856,0.00404189,2417.3,2416.6,0.00438578]
[1769880103052,3.309,2418.1,2417.0,4.03118163]
[1769880103246,3.92493383,2418.0,2416.5,4.02679585]
[1769880103453,3.92493383,2418.0,2416.0,4.02679585]
[1769880103855,3.92493383,2418.0,2416.2,0.00438578]
[1769880104155,3.92960284,2418.0,2416.2,0.00438578]
[1769880104451,3.92960284,2418.0,2416.3,0.00438578]
[1769880104659,3.92960284,2418.0,2415.8,0.00438578]
[1769880104855,3.92493383,2417.8,2416.1,4.02679585]
[1769880105062,3.92493383,2417.6,2415.6,4.02679585]
[1769880105366,3.92493383,2416.9,2415.5,0.00476785]
[1769880105552,3.25895422,2417.3,2414.6,4.02679585]
[1769880105553,3.92493383,2416.6,2414.6,4.02679585]
[1769880105760,3.92493383,2416.4,2414.6,4.02679585]
[1769880105955,3.92493383,2416.4,2415.2,0.00438578]
[1769880106151,3.92493383,2416.4,2415.3,0.00438578]
[1769880106455,3.309,2416.5,2415.7,0.00438578]
[1769880106658,3.309,2416.5,2415.0,4.02679585]
[1769880106959,3.92493383,2417.4,2415.1,4.02679585]
[1769880107154,3.31466901,2418.0,2415.1,4.02679585]
[1769880107354,3.25895422,2417.8,2415.1,4.02679585]
[1769880107551,3.31466901,2418.0,2414.6,4.03167843]
[1769880107552,3.92493383,2417.0,2414.6,4.03167843]
[1769880107860,4.13214383,2416.8,2414.6,0.00488258]
[1769880108058,4.13214383,2416.8,2413.0,0.20753]
[1769880108059,3.92493383,2415.3,2412.9,4.02679585]
[1769880108256,3.92493383,2415.3,2413.2,4.02679585]
[1769880108554,3.92493383,2415.8,2413.2,4.02679585]
[1769880108958,3.92847089,2415.8,2413.2,4.03201215]
[1769880110658,3.92493383,2415.6,2413.2,4.03201215]
[1769880111654,0.00353706,2415.8,2413.5,4.02679585]
[1769880111855,0.00353706,2415.8,2413.8,4.02679585]
[1769880112160,3.311,2416.8,2414.3,4.02679585]
[1769880112362,3.92493383,2416.7,2414.5,4.02679585]
[1769880112658,3.92493383,2416.4,2413.3,4.02679585]
[1769880112850,3.92493383,2416.2,2413.3,4.02679585]
[1769880113256,3.92801936,2416.2,2413.3,4.02679585]
[1769880113561,3.92493383,2415.8,2413.3,4.02679585]
[1769880113955,4.13222383,2415.8,2413.3,4.02679585]
[1769880114362,3.92801936,2416.2,2413.3,4.02679585]
[1769880114664,3.92801936,2416.2,2413.5,4.02679585]
[1769880114860,3.92801936,2416.2,2413.7,4.02679585]
[1769880115059,3.92493383,2415.5,2413.2,0.0052163]
[1769880115360,3.92493383,2415.3,2413.2,4.03201215]
[1769880115860,4.13227383,2415.3,2413.2,4.03201215]
[1769880116056,3.312,2415.4,2413.2,4.03201215]
[1769880116057,3.92493383,2415.1,2413.2,4.03201215]
[1769880116253,3.92493383,2415.1,2413.2,0.0052163]
[1769880116458,3.92493383,2414.9,2413.2,0.0052163]
[1769880116661,4.13230383,2414.9,2413.2,0.0052163]
[1769880117059,3.92493383,2415.8,2413.2,4.03201215]
[1769880117254,3.92493383,2414.7,2412.2,4.02679585]
[1769880118262,3.92493383,2414.7,2412.2,4.032031]
[1769880119457,4.13231383,2414.7,2412.2,4.032031]
[1769880120558,3.92493383,2414.4,2412.2,4.032031]
[1769880120763,3.92493383,2414.4,2412.2,4.239621]
[1769880120764,0.00347176,2414.4,2412.2,4.239621]
[1769880120965,3.92493383,2416.3,2413.3,4.02679585]
[1769880121262,5.76867984,2416.7,2414.1,4.02679585]
[1769880121562,3.92493383,2416.6,2414.1,4.02679585]
[1769880122059,3.92493383,2415.6,2414.1,0.00509322]
[1769880122454,3.92493383,2415.3,2412.2,4.02679585]
[1769880122655,3.92493383,2414.4,2412.2,4.02679585]
[1769880123561,0.00450515,2414.4,2412.2,4.03075813]
[1769880123863,3.314,2415.7,2412.7,4.02679585]
[1769880124060,1.84374601,2416.7,2413.9,4.02679585]
[1769880124257,1.84374601,2416.7,2414.1,4.02679585]
[1769880124258,5.76867984,2416.7,2414.1,4.02679585]
[1769880124458,3.92493383,2416.6,2414.1,4.02679585]
[1769880124857,3.92930453,2416.6,2414.1,0.00368541]
[1769880125058,3.92493383,2415.8,2414.1,4.03048126]
[1769880125258,0.0043707,2416.6,2414.1,4.03048126]
[1769880125259,3.92493383,2416.3,2414.1,4.03048126]
[1769880125470,0.0043707,2416.6,2414.1,4.03048126]
[1769880125762,0.0043707,2416.6,2414.5,0.20739]
[1769880125966,0.0043707,2416.6,2414.6,4.02679585]
[1769880126165,0.0043707,2416.6,2414.8,4.02679585]
[1769880126462,0.0043707,2416.6,2414.2,3.314]
[1769880126463,3.92493383,2417.9,2415.5,0.20731]
[1769880126656,3.92493383,2418.4,2415.7,4.02679585]
[1769880126857,3.92493383,2418.4,2415.9,3.87356623]
[1769880127363,3.92813497,2418.4,2415.9,3.87672297]
[1769880127561,3.92813497,2418.4,2416.1,3.87356623]
[1769880127961,3.8196414,2418.1,2416.1,3.87356623]
[1769880128166,3.8196414,2418.1,2416.0,1.4126]
[1769880128368,3.8196414,2417.6,2416.0,1.4126]
[1769880128662,3.313,2418.0,2416.1,3.87356623]
[1769880129067,3.8196414,2417.9,2416.1,3.87356623]
[1769880129367,3.8196414,2417.9,2416.0,1.4126]
[1769880129560,3.8196414,2417.3,2416.0,1.4126]
[1769880129758,3.8196414,2417.3,2415.0,3.87356623]
[1769880130159,4.0268414,2416.9,2414.5,3.87356623]
[1769880130361,3.8196414,2416.9,2414.5,3.87356623]
[1769880130660,3.8196414,2416.9,2414.5,3.87770989]
[1769880131267,3.8196414,2417.4,2414.5,3.87770989]
[1769880132169,0.20708,2418.2,2414.5,3.87770989]
[1769880132170,3.8196414,2418.1,2414.7,3.87356623]
[1769880132369,3.8196414,2418.1,2414.9,3.87356623]
[1769880132571,3.31620114,2418.4,2415.5,3.87356623]
[1769880132864,0.00320114,2418.4,2415.7,3.87356623]
[1769880133066,0.00320114,2418.4,2416.1,3.87356623]
[1769880133365,33.70570821,2420.0,2415.0,3.313]
[1769880133366,3.8196414,2419.8,2416.8,3.87356623]
[1769880133569,4.0265914,2419.8,2416.9,3.87356623]
[1769880133866,3.8196414,2419.2,2416.9,3.87356623]
[1769880134065,4.0266414,2419.2,2416.9,3.87356623]
[1769880134264,3.8196414,2419.1,2416.9,3.87683407]
[1769880134871,3.8196414,2418.9,2416.9,0.00326784]
[1769880135061,3.8196414,2418.7,2416.9,0.00326784]
[1769880135267,3.31659364,2419.2,2416.9,0.00326784]
[1769880135268,3.8196414,2418.3,2416.9,0.00326784]
[1769880135870,3.8196414,2417.9,2415.6,3.87356623]
[1769880136268,3.8196414,2417.7,2415.6,3.87356623]
[1769880136571,2.21636705,2418.7,2414.5,3.87356623]
[1769880136572,3.8196414,2417.3,2414.5,3.87356623]
[1769880136768,3.82426184,2417.3,2414.5,4.08423697]
[1769880136962,3.82426184,2417.3,2414.5,3.87683697]
[1769880137266,3.8196414,2417.0,2414.5,3.87683697]
[1769880137865,3.8196414,2416.4,2414.5,0.00327074]
[1769880138070,3.8196414,2416.2,2414.5,0.00327074]
[1769880139564,3.8196414,2416.2,2411.8,3.87356623]
[1769880139565,4.0270014,2414.9,2411.8,3.87356623]
[1769880139766,3.8196414,2414.6,2411.8,3.87356623]
[1769880139971,3.8196414,2414.0,2411.8,3.87356623]
[1769880140166,3.8196414,2415.1,2411.8,3.87356623]
[1769880140368,2.8196414,2415.1,2411.8,3.87356623]
[1769880140566,2.8196414,2415.1,2412.0,3.87356623]
[1769880140567,2.82480546,2415.1,2412.0,3.87356623]
[1769880140770,0.20739,2414.6,2412.0,3.87356623]
[1769880140979,0.20742,2414.3,2412.0,3.87356623]
[1769880141671,0.00516406,2415.1,2412.0,3.87356623]
[1769880141971,0.20737,2414.8,2412.0,3.87356623]
[1769880142372,3.8196414,2414.7,2412.0,3.87356623]
[1769880142878,0.00516406,2415.1,2411.8,0.00298531]
[1769880142879,3.82480546,2415.1,2412.2,3.87356623]
[1769880143180,3.8196414,2415.0,2412.2,3.87356623]
[1769880143475,3.8196414,2414.7,2412.2,3.87356623]
[1769880144278,3.8196414,2415.0,2412.2,3.87356623]
[1769880144673,3.31816406,2415.1,2412.6,3.87356623]
[1769880144674,0.00516406,2415.1,2412.6,3.87356623]
[1769880145179,3.82480546,2415.1,2412.6,3.87356623]
[1769880145373,0.00516406,2415.1,2412.6,3.87356623]
[1769880145780,3.82480546,2415.1,2412.6,3.87356623]
[1769880146074,0.00516406,2415.1,2413.0,3.87356623]
[1769880146272,3.8196414,2416.1,2413.1,3.87356623]
[1769880146469,3.314,2416.4,2413.9,3.87356623]
[1769880146670,3.314,2416.4,2413.9,4.08101623]
[1769880146980,3.8196414,2416.3,2413.9,3.87356623]
[1769880147476,3.82426181,2416.3,2413.9,3.8775075]
[1769880147774,3.8196414,2415.9,2413.9,0.00394127]
[1769880147979,3.8196414,2415.6,2413.9,0.00394127]
[1769880148175,3.8196414,2415.1,2413.1,3.87356623]
[1769880148379,3.8196414,2414.9,2411.7,3.87356623]
[1769880148685,3.8196414,2413.8,2411.7,3.87356623]
[1769880148984,3.8196414,2414.7,2411.7,3.87356623]
[1769880149275,3.82288989,2414.7,2411.7,4.08641945]
[1769880149469,0.00324849,2414.7,2411.9,3.87356623]
[1769880149779,0.00324849,2414.7,2412.1,3.87356623]
[1769880150079,0.00324849,2414.7,2412.1,4.08116623]
[1769880150276,0.00324849,2414.7,2412.5,3.87356623]
[1769880150573,0.00324849,2414.7,2412.8,3.87356623]
[1769880150776,0.00324849,2414.7,2413.0,3.87356623]
[1769880151775,3.82288989,2414.7,2413.0,3.87356623]
[1769880152676,3.8196414,2414.6,2412.5,3.87356623]
[1769880153473,3.8196414,2416.6,2412.5,3.87356623]
[1769880153678,3.8196414,2416.6,2411.7,0.00522322]
[1769880153679,3.8196414,2417.3,2414.5,3.87356623]
[1769880154281,3.8196414,2417.0,2414.5,3.87356623]
[1769880154677,3.8196414,2416.8,2414.5,3.87716366]
[1769880155077,4.0268414,2416.8,2414.5,3.87716366]
[1769880155474,3.8196414,2416.4,2414.5,0.00359743]
[1769880155670,3.8196414,2416.4,2409.3,9.403837]
[1769880155671,3.8196414,2415.3,2411.8,3.87356623]
[1769880155877,4.0270414,2414.6,2411.8,3.87356623]
[1769880156078,3.8196414,2414.2,2411.8,3.87356623]
[1769880156284,3.8196414,2414.0,2411.8,3.87356623]
[1769880156680,3.82322318,2414.0,2411.8,0.00476986]
[1769880157080,3.82322318,2414.0,2411.8,3.89084536]
[1769880157578,3.88548226,2415.0,2412.1,3.8860755]
[1769880157776,3.88548226,2415.0,2412.4,3.8860755]
[1769880158584,3.88949383,2415.0,2412.4,3.8860755]
[1769880159481,3.88548226,2413.9,2411.8,0.00476986]
[1769880159886,3.88548226,2413.9,2411.8,3.89084536]
[1769880160681,3.88548226,2414.4,2411.8,3.89084536]
[1769880160889,3.88548226,2414.8,2411.8,3.89084536]
[1769880161184,3.88548226,2414.8,2412.1,3.8860755]
[1769880161486,4.09286226,2414.8,2412.1,3.8860755]
[1769880161683,3.315,2414.7,2412.1,3.8860755]
[1769880161886,3.93395654,2414.6,2412.1,3.8860755]
[1769880162087,3.178,2415.5,2411.8,0.00476986]
[1769880162088,3.93395654,2416.2,2412.8,4.05709278]
[1769880162385,3.93395654,2416.0,2412.9,4.05709278]
[1769880162689,3.93395654,2416.0,2413.2,4.05709278]
[1769880162883,3.93395654,2416.5,2413.2,4.05709278]
[1769880163077,0.00506728,2416.5,2414.4,4.05709278]
[1769880163277,0.00506728,2416.5,2414.6,4.05709278]
[1769880165190,0.00907885,2416.5,2414.6,4.05709278]
[1769880165583,0.00506728,2416.5,2414.6,4.05709278]
[1769880165987,0.00506728,2416.5,2414.7,4.05709278]
[1769880166592,3.93395654,2417.9,2415.0,4.05709278]
[1769880166983,3.93395654,2417.7,2415.0,4.26444278]
[1769880167290,3.93395654,2417.7,2414.5,3.315]
[1769880167291,3.93395654,2418.9,2415.5,4.05709278]
[1769880167484,3.93395654,2418.9,2414.6,3.32789359]
[1769880167485,3.93395654,2418.9,2415.9,4.05709278]
[1769880167684,3.93395654,2418.9,2416.1,4.05709278]
[1769880167685,3.94136589,2418.9,2416.1,4.05709278]
[1769880167884,3.94136589,2418.9,2416.1,4.06186655]
[1769880167885,3.93395654,2418.3,2416.1,4.06186655]
[1769880168087,3.93395654,2418.4,2416.1,4.06186655]
[1769880168281,3.93735432,2418.9,2416.1,4.06186655]
[1769880168482,3.93395654,2420.4,2416.6,4.05709278]
[1769880168692,3.93395654,2420.4,2417.2,4.05709278]
[1769880168984,3.93395654,2420.1,2417.2,4.05709278]
[1769880169189,3.93395654,2419.9,2417.2,4.05709278]
[1769880169391,3.93395654,2419.7,2417.2,4.05709278]
[1769880169590,3.93395654,2419.0,2417.2,4.05709278]
[1769880169791,3.93796811,2419.0,2417.2,4.05709278]
[1769880169991,0.00401157,2418.6,2417.2,4.05709278]
[1769880170188,3.93395654,2419.0,2417.2,4.05709278]
[1769880170388,0.00401157,2418.0,2416.2,4.05709278]
[1769880170593,0.00468746,2418.0,2416.2,4.05709278]
[1769880170795,3.93796811,2417.9,2416.2,4.05709278]
[1769880171188,0.00401157,2417.8,2416.2,4.05709278]
[1769880171589,3.93395654,2417.9,2416.2,4.05709278]
[1769880171790,3.93395654,2417.9,2414.8,15.29676525]
[1769880171996,3.93395654,2417.2,2415.6,4.05709278]